Cogmind - Beta 16 @@@ ROGUE MODE // 2025.10.26 @ 13:53:50 Player: Mxykikker Result: Destroyed by 5F-RPL(R) with Subdweller Machine Gun Performance ------------- Evolutions (0) 0 Regions Visited (2) 400 Robots Destroyed (24) 120 Value Destroyed (538) 538 Prototype IDs (14) 280 Alien Tech Used (0) 0 Bonus (0) 0 TOTAL SCORE: 1338 Bonus ------- None Cogmind --------- Core Integrity 0/250 Matter 300/300 Energy 100/100 System Corruption 2% Temperature Cool (0) Movement Core (800) Ox15 Location -10/Subcaves Parts ------- > --- POWER (1) -------- (None) > --- PROPULSION (2) --- (None) > --- UTILITY (2) ------ High-capacity Storage Unit > --- WEAPON (2) ------- Heavy Hammer Heavy Hammer > --- INVENTORY (20) --- Ion Engine Meta Core Wheel Wheel Small Storage Unit Sensor Array Signal Interpreter ECM Suite Gun Armor Scrap Shield EM Pulse Gun EM Pulse Gun Makeshift Laser Peak State ------------ > --- POWER ------------ Improved Ion Engine > --- PROPULSION ------- Wheel Wheel > --- UTILITY ---------- High-capacity Storage Unit Shield Generator > --- WEAPON ----------- Slug Cannon Heavy Hammer > --- INVENTORY -------- Ion Engine Wheel Wheel Small Storage Unit Sensor Array Signal Interpreter ECM Suite Gun Armor EM Pulse Gun EM Pulse Gun Makeshift Laser Grenade Launcher Heavy Hammer [Rating: 15] Favorites ----------- Power Improved Ion Engine Engine Improved Ion Engine Propulsion Wheel Wheel Wheel Utility High-capacity Storage Unit Device Shield Generator Storage High-capacity Storage Unit Weapon Heavy Hammer Energy Gun Medium Laser Ballistic Cannon Slug Cannon Launcher Grenade Launcher Special Weapon Mining Laser Impact Weapon Heavy Hammer Build | -11 -10 -10 ------- Run | Yrd Mat Sub Slots Evolved . | . . . Power . | . . . Propulsion . | . . . Utility . | . . . Weapon . | . . . Parts Attached 21 | 8 12 1 Power 2 | 1 1 . Engine 2 | 1 1 . Core . | . . . Reactor . | . . . Propulsion 6 | 4 2 . Treads . | . . . Leg . | . . . Wheel 6 | 4 2 . Hover . | . . . Flight . | . . . Utility 4 | 1 3 . Device 2 | . 2 . Storage 2 | 1 1 . Processor . | . . . Hackware . | . . . Protection . | . . . Artifact . | . . . Weapon 9 | 2 6 1 Energy Gun 4 | 2 2 . Energy Cannon . | . . . Ballistic Gun . | . . . Ballistic Cannon 1 | . . 1 Launcher 1 | . 1 . Special Weapon 1 | . 1 . Impact Weapon 2 | . 2 . Slashing Weapon . | . . . Piercing Weapon . | . . . Special Melee Weapon . | . . . Unidentified Prototypes . | . . . Parts Lost 7 | . 1 6 Power 1 | . . 1 Propulsion 2 | . . 2 Utility 2 | . 1 1 Weapon 2 | . . 2 Highest Loss Streak 2 | . 1 2 To Critical Strikes . | . . . Average Backups 9 | . 7 12 Power . | . . 1 Propulsion 1 | . 2 2 Utility 3 | . 2 4 Weapon 2 | . 2 3 Tool/Special . | . . . Unused Backups 8 | . 1 7 Power . | . . . Propulsion . | . . . Utility 5 | . . 5 Weapon 2 | . 1 1 Tool/Special 1 | . . 1 Average Slot Usage (%) 94 | . 96 92 Engine 13 | . 13 13 Wheel 27 | . 27 27 Device 9 | . 11 8 Storage 14 | . 14 14 Energy Gun 8 | . 16 . Launcher 2 | . . 4 Impact Weapon 16 | . 10 23 Peak Build Rating 15 | 6 12 15 Average Rating 9 | 5 8 12 On Entrance 6 | . 6 12 Avg Prop Armor Cover (%) . | . . . Naked Turns . | . . . Heaviest Build 59 | 13 55 59 Greatest Support 32 | 32 20 20 Greatest Overweight (x) 15 | . 4 15 Average Overweight (x) 1 | . 1 2 Largest Inventory Capacity 20 | 8 20 20 Average Capacity 18 | 7 19 20 Most Carried 14 | 4 10 14 Average Carried 9 | . 7 12 Final Capacity 20 | 8 20 20 Final Carried 14 | 3 10 14 Class Distribution -------------------- 100% | Mutant Dominant Class ---------------- Mutant | -10/Materials Mutant | -10/Subcaves Resources | -11 -10 -10 ----------- Run | Yrd Mat Sub Matter Collected 685 | 290 40 355 Remotely . | . . . Salvage Created 707 | 199 253 255 Parts 51 | 18 15 18 Haulers Intercepted 1 | . 1 . Recyclers Shooed . | . . . Parts Field Recycled . | . . . Retrieved Matter . | . . . Parts Self-Destructed 2 | . . 2 Prevented . | . . . Parts Restored . | . . . Kills | -11 -10 -10 ------- Run | Yrd Mat Sub Combat Hostiles Destroyed 14 | . 7 7 Melee 2 | . . 2 Guns 1 | . 1 . AOE 8 | . 4 4 Classes Destroyed 8 | 3 3 2 Worker 3 | 2 1 . Tunneler 5 | 5 . . Hauler 1 | . 1 . Recycler 1 | 1 . . Swarmer 3 | . 3 . Grunt 4 | . 4 . Artisan 1 | . . 1 Subdweller 7 | . . 7 Best Kill Streak 4 | 4 4 2 Combat Bots Only 3 | . 3 2 Max Kills in Single Turn 2 | 1 2 2 Gunslinging . | . . . Exploded 2 | . 2 2 Melee 1 | . . 1 Uniques/NPCs Destroyed . | . . . Combat | -11 -10 -10 -------- Run | Yrd Mat Sub Hostile Shots Fired 74 | . 33 41 Missed 21 | . 10 11 Hits 53 | . 23 30 Projectile 53 | . 23 30 Critical Strikes 1 | . 1 . Damage Taken 986 | . 320 666 Core 253 | . 90 163 Absorbed by Shields 53 | . 45 8 Core Remaining (%) 100 | 100 . . Volleys Fired 57 | 13 29 15 Largest 2 | 2 2 1 Hottest 100 | 90 100 40 Shots Fired 91 | 26 50 15 Gun 67 | 26 41 . Cannon 9 | . . 9 Launcher 11 | . 5 6 Special 4 | . 4 . Kinetic 9 | . . 9 Thermal 70 | 26 44 . Explosive 11 | . 5 6 Electromagnetic 1 | . 1 . Robot Hit Streak 9 | 5 9 5 Robot Miss Streak 2 | 2 2 1 Penetration Max . | . . . Secondary Targets . | . . . Shots Hit Robots 58 | 14 26 18 Core Hits 35 | 9 14 12 Critical Kills 1 | . . 1 Critical Parts Destroyed 1 | . . 1 Critical Strikes 6 | 1 2 3 Burn 3 | 1 2 . Destroy 1 | . . 1 Smash 2 | . . 2 Melee Attacks 23 | . 2 21 Impact 23 | . 2 21 Slashing . | . . . Piercing . | . . . Sneak Attacks 3 | . . 3 Combat Hostiles . | . . . Follow-up Attacks . | . . . Damage Inflicted 1964 | 180 708 1076 Guns 495 | 180 315 . Cannons 130 | . . 130 Explosions 1035 | . 393 642 Melee 304 | . . 304 Ramming . | . . . Kinetic 130 | . . 130 Thermal 495 | 180 315 . Explosive 1035 | . 393 642 Electromagnetic . | . . . Impact 304 | . . 304 Slashing . | . . . Piercing . | . . . Highest Corruption 2 | . 2 2 Average Corruption 2 | . 2 2 Corruption Purged . | . . . Corruption Blocked . | . . . Effects 10 | . 1 9 Message Errors 3 | . 1 2 Matter Fused 1 | . . 1 Heat Flow Errors 3 | . . 3 Energy Discharges 1 | . . 1 Data Loss (minor) 1 | . . 1 Data Loss (major) 1 | . . 1 Overload Shots . | . . . Overflow Damage 140 | . 20 120 Projectiles . | . . . Explosions 20 | . 20 . Melee 120 | . . 120 Knockbacks 3 | . . 3 Impact . | . . . Kinetic 3 | . . 3 Secondary . | . . . Self-Inflicted Damage 39 | . 23 16 Shots 4 | . 3 1 Rammed . | . . . Targets Rammed . | . . . Kicked . | . . . Crushed . | . . . Highest Temperature 234 | 120 165 234 Average Temperature 49 | 47 36 110 Received Heat Transfer 237 | . 120 117 Effects 1 | . . 1 Interference 1 | . . 1 Siege Activations . | . . . Martial Activations . | . . . Shielding Activations . | . . . Robots Disrupted . | . . . Combat Hostiles . | . . . Robots Corrupted 1 | . . 1 Combat Hostiles 1 | . . 1 Parts Fried 2 | . . 2 Impact Corruptions 2 | . . 2 Robots Melted 2 | . 2 . Combat Hostiles 2 | . 2 . Parts Melted 4 | 1 3 . Heat Transferred 1572 | 581 991 . Parts Sabotaged . | . . . Parts Stolen . | . . . Parts Stripped . | . . . Power Chain Reactions . | . . . Alert | -11 -10 -10 ------- Run | Yrd Mat Sub Maximum Alert Level . | . . . Low Security (%) 100 | 100 100 . Level 1 . | . . . Level 2 . | . . . Level 3 . | . . . Level 4 . | . . . Level 5 . | . . . High Security . | . . . Max Security . | . . . Peak Influence 84 | 10 84 . Initial 3 | . 3 . Average 18 | 2 20 . Influence Increases 330 | 40 290 . Destroy 0b10 Robot/C 140 | . 140 . Destroy 0b10 Robot/NC 50 | 40 10 . Destroy Leader 42 | . 42 . Successful Hack 23 | . 23 . Disable Machine 30 | . 30 . Destroy Structure 30 | . 30 . Lose Combat Pursuer 15 | . 15 . Influence Decreases 330 | 35 259 36 Entered New Map 20 | . 2 18 Time Decay 310 | 35 257 18 Squads Dispatched 1 | . 1 . Investigation 1 | . 1 . Extermination . | . . . Reinforcement . | . . . Assault . | . . . Garrison . | . . . Intercept . | . . . Searches Triggered . | . . . Construction Impeded . | . . . Haulers Reinforced . | . . . Active Scanning Responses . | . . . Cargo Convoy Interrupts . | . . . Stealth | -11 -10 -10 --------- Run | Yrd Mat Sub Distress Signals 2 | . 2 . Communications Jammed . | . . . Distress Signals . | . . . Times Spotted 24 | . 16 8 Peak Tracking Total 4 | . 4 2 Tactical Retreats 1 | . 1 . Traps | -11 -10 -10 ------- Run | Yrd Mat Sub Traps Triggered 3 | . 3 . Indirectly . | . . . Trap Hack Attempts . | . . . Triggered . | . . . Disarmed . | . . . Reprogrammed . | . . . Reused . | . . . Traps Extracted . | . . . Installed . | . . . Triggered . | . . . Machines | -11 -10 -10 ---------- Run | Yrd Mat Sub Machines Disabled 3 | . 2 1 Max in Single Turn 1 | . 1 1 Machines Repaired . | . . . Machines Dismantled . | . . . Machines Sabotaged . | . . . Overloaded Fab Kills . | . . . Hacking | -11 -10 -10 --------- Run | Yrd Mat Sub Machines Accessed 8 | . 7 1 Terminals 7 | . 7 . Fabricators . | . . . Repair Stations . | . . . Recycling Units . | . . . Scanalyzers . | . . . Garrison Access . | . . . Total Hacks 19 | . 18 1 Successful 10 | . 9 1 Failed 9 | . 9 . Catastrophic 1 | . 1 . Database Lockouts . | . . . Manual 5 | . 5 . Terminals 18 | . 18 . Fabricators . | . . . Repair Stations . | . . . Recycling Units . | . . . Scanalyzers . | . . . Garrison Access . | . . . Terminal Hacks 8 | . 7 1 Prototype ID Bank 1 | . 1 . Alert Level 1 | . 1 . Locate Traps 3 | . 3 . Reinforcement Status 1 | . 1 . Hauler Manifests 1 | . 1 . Proto ID Catalog 1 | . . 1 Fabricator Hacks . | . . . Repair Station Hacks . | . . . Recycling Unit Hacks . | . . . Scanalyzer . | . . . Garrison Access Hacks . | . . . Unauthorized Hacks 2 | . 2 . Terminals 2 | . 2 . Botnet 2 | . 2 . Fabricators . | . . . Repair Stations . | . . . Recycling Units . | . . . Scanalyzers . | . . . Garrison Access . | . . . Data Cores Recovered . | . . . Used . | . . . Hacking Detections 5 | . 5 . Full Trace Events 2 | . 2 . Feedback Events . | . . . Feedback Blocked . | . . . Robot Schematics Acquired . | . . . Robots Built . | . . . Authchips . | . . . Time . | . . . Total Robot Build Rating . | . . . Part Schematics Acquired . | . . . Parts Built . | . . . Authchips . | . . . Time . | . . . Total Part Build Rating . | . . . Part Studies Acquired . | . . . Parts Repaired . | . . . Time . | . . . Parts Recycled . | . . . Recycled Matter . | . . . Retrieved Matter . | . . . Retrieved Components . | . . . Parts Scanalyzed . | . . . Part Schematics Acquired . | . . . Parts Damaged . | . . . Bothacking | -11 -10 -10 ------------ Run | Yrd Mat Sub Used RIF Installer . | . . . Robots Hacked . | . . . Non-combat . | . . . Combat . | . . . Robot Hacks Applied . | . . . Relay Couplers Released . | . . . Fabnet Peak Effective % . | . . . Robots Rewired . | . . . Allies Hacked . | . . . Hacks Repelled . | . . . Allies | -11 -10 -10 -------- Run | Yrd Mat Sub Total Allies . | . . . Largest Group . | . . . Highest-Rated Group . | . . . Highest-Rated Ally . | . . . Total Orders . | . . . Ally Attacks . | . . . Total Damage . | . . . Kills . | . . . Allies Corrupted . | . . . Allies Melted . | . . . Intel | -11 -10 -10 ------- Run | Yrd Mat Sub Active Infowar (turns) . | . . . Robot Analysis Total . | . . . Derelict Logs Recovered . | . . . Drone Launches . | . . . Drone Recoveries . | . . . Exploration | -11 -10 -10 ------------- Run | Yrd Mat Sub Turns Passed 1575 | 130 749 696 Spaces Moved 1121 | 83 516 522 Core 8 | 6 . 2 Treads . | . . . Legs . | . . . Wheels 1113 | 77 516 520 Hover . | . . . Flight . | . . . Fastest Speed 50 | 50 80 110 Average Speed 109 | 89 108 114 Slowest Speed 800 | 100 140 800 Overloaded Moves . | . . . Propulsion Burnouts . | . . . Robots Hopped . | . . . Potential Cave-ins . | . . . Cave-ins Triggered . | . . . Exploration Rate (%) 44 | 5 88 40 Regions Visited 2 Branch Regions 1 Pre-discovered Areas . | . . . Known Exits Taken . | . . . Unknown Exits Taken 2 | 1 1 . Scrap Searched 3 | . . 3 Spaces Dug 3 | . 3 . Terrain Destroyed 50 | . 36 14 Melee . | . . . Projectile 4 | . 3 1 AOE 46 | . 33 13 Terrain Rammed . | . . . Walls Destroyed . | . . . Machines Disabled . | . . . Actions | -11 -10 -10 --------- Run | Yrd Mat Sub Total 1321 | 110 638 573 Wait 64 | . 57 7 Move 1119 | 82 515 522 Hop . | . . . Pick Up 13 | 3 5 5 Fast Attach 17 | 6 11 . Attach 3 | 1 . 2 Detach 6 | 1 5 . Swap 14 | 2 10 2 Drop 6 | 2 4 . Fire 57 | 13 29 15 Melee 22 | . 2 20 Ram . | . . . Kick . | . . . Crush . | . . . Escape Stasis . | . . . Rewire . | . . . Trap . | . . . Miscellaneous . | . . . Route ------- -11/Scrapyard -10/Materials (discovered 5 exits: [*Mat x2] / [*Min x2] / *Sub) -10/Subcaves (discovered 2 exits: [*Mat] / [*Scr]) History --------- Turn | Location | Event 4 | -11/Scrapyard | Discovered new exit (range 16) 131 | -11/Scrapyard | Entered Materials 308 | -10/Materials | Build established: Mutant 319 | -10/Materials | Discovered new exit (range 9) 425 | -10/Materials | Discovered new exit (range 14) 534 | -10/Materials | Discovered new exit (range 10) 691 | -10/Materials | Discovered new exit (range 11) 864 | -10/Materials | Discovered new exit (range 7) 880 | -10/Materials | Entered Subcaves 881 | -10/Subcaves | Approached by a straggling Scientist 971 | -10/Subcaves | Visited 4L-MR0's lab 991 | -10/Subcaves | Found Gun Armor 1068 | -10/Subcaves | Discovered new exit (range 7) 1230 | -10/Subcaves | Scientist uncovered a shortcut to Scraptown 1269 | -10/Subcaves | A Subdweller sparked back to life 1269 | -10/Subcaves | A Subdweller sparked back to life 1312 | -10/Subcaves | Core integrity fell below 50% 1347 | -10/Subcaves | Found Meta Core 1527 | -10/Subcaves | Ambushed by Subdwellers from Twisted Machinery 1529 | -10/Subcaves | Core integrity fell below 20% 1576 | -10/Subcaves | Destroyed by 5F-RPL(R) with Subdweller Machine Gun Last Messages --------------- 01347_ Acquired Meta Core. 01350_ Acquired 34 matter. 01462_ System corrupted: Heat flow error (+190). 01483_ System corrupted: Heat flow error (+273). 01484_ Overheating: System interference. 01484_ Hvy. Hammer temporarily disabled. 01500_ 4J-M0J(R) destroyed. 01500_ Grenade Launcher destroyed. 01506_ System corrupted: Heat flow error (+204). 01516_ Destroyed Sub. Optics. 01516_ AL-UG2(R) system corrupted by crushing effect. 01517_ AL-UG2(R) system terminally corrupted. 01517_ Sub. Monowheel fried. 01519_ Acquired 16 matter. 01527_ Acquired Scrap Shield. 01530_ Wheel destroyed. 01532_ WP#XMPP|2,XYHFF PECNMOQI/M ####" #?????????????????????? | | ?? ##?## ## #?????????????????????? | | ???# ##?## ## ##?##??????????????????? | | ?????##??# ##" ##?###?# ##?????????????????? | | #???###### ###" ##????##" #?????????????????? | | "#### # #### ##????" " #?????????????????? | | """ ## ##?##"""" #?????????????????? | | "" ### """""#?????????????????? | | " ##### ## % """#??????????????????? | | #???######## ###??????????????????? | | #??????????## ###????????????????????? | | # ##??????????# ### #??????????????????????? | | ## ###????????## ##?# #??????????????????????? | | ## ####??????###?## #??????????????????????? | | #?????????## @#??????????????????????? | | "" #????????## #??????????????????????? | | " #### ### ##??????????????????????? | | = * ## ##??????????????????????? | | = ## R ##?????????????????????? | | & % R #####?????????????????? | | & " ### ##????????????????? | | # "# ###### ## #####????????????? | | ### #####?### ###### ##???????????? | | ??## #????## #????# #???????????? | | ???###????# ?????# #???????????? | | ??????????# ##???## ## #???????????? | | ??????????# ###### ##???????????????? | | ???????????# ## ##????????????????? | | ??????????## ##?????????????????? | | ????????### #??????????????????? | | ???????## #??????????????????? | | ???????# #??????????????????? | | ???????## ## #?????????????????? | | ?????????????# #?????????????????? | | ?????????????# ######## ## ??????????????? | | ?????????????# #######?###? ??????????????? | | ????????????## & ## ##?? ?????????????? | | ???????????##" & #??? ?????????????? | | ????????# "" %! #???? ??????????????? | +----------------------------------------------------+ Best States ------------- Heat Dissipation 35 Energy Generation 12 Energy Capacity 265 Matter Stores 300 Matter Capacity 300 Sight Range 16 Terrain Scan Density 10 Evasion (%) 44 Item Schematics ----------------- None Robot Schematics ------------------ None Fabricated ------------ Nothing Repaired ---------- Nothing Studied --------- None Alien Tech Used ----------------- None Achievements -------------- None Challenges ------------ None Game ------ Seed AblativeMicroRedistributor Manual? 0 Play Time 00:17:49 Cumulative 84.0 hours Start 2025.10.26 @ 13:35:13 End 2025.10.26 @ 13:53:50 Sessions 1 Manual Loads 0 Difficulty Rogue Special Mode None Game No. 130 Rogue 130 Adventurer 0 Explorer 0 Win Type - Total 0 Types 0/0/0/0/0/0/0/0/0/0 Lore% 27 Gallery% 31 Achievement% 23 Wizard Run 0 Options --------- Layout 1 ASCII 0 Keyboard 0 Movement Mouse Keybinds 0 Fullscreen 1 Font 24/Smallcaps Map View 50x35 Zoom Use 0% Tactical HUD 1 Map Filters NONE Filters NONE Steam 1 RUN: 874f9d51-4cec-47de-91d3-dc24aac33cfc